[Event "*** Titled Tuesday Blitz"]
[Site "Chess.com"]
[Date "2019.02.05"]
[Round "6"]
[White "GremioPrudente"]
[Black "Karina_Oparina"]
[Result "0-1"]
[WhiteElo "2060"]
[BlackElo "2192"]
[TimeControl "180+2"]
[EndTime "14:26:45 PST"]
[Termination "Karina_Oparina won on time"]

1. Nf3 {[%clk 0:03:01.9]} 1... Nf6 {[%clk 0:02:58.4]} 2. c4 {[%clk 0:03:02.2]}
2... e6 {[%clk 0:02:57.8]} 3. d4 {[%clk 0:03:02.7]} 3... b6 {[%clk 0:02:58]} 4.
g3 {[%clk 0:03:02.4]} 4... Bb7 {[%clk 0:02:58.6]} 5. Bg2 {[%clk 0:03:03.1]} 5...
Be7 {[%clk 0:02:59.3]} 6. O-O {[%clk 0:03:04]} 6... O-O {[%clk 0:02:59.4]} 7.
Nc3 {[%clk 0:03:05]} 7... Ne4 {[%clk 0:03:00.1]} 8. Qc2 {[%clk 0:03:06]} 8...
Nxc3 {[%clk 0:03:00.3]} 9. Qxc3 {[%clk 0:03:07]} 9... Bf6 {[%clk 0:02:57.7]} 10.
b3 {[%clk 0:03:05.3]} 10... c5 {[%clk 0:02:55.6]} 11. Bb2 {[%clk 0:02:23.9]}
11... Nc6 {[%clk 0:02:47.1]} 12. Qd2 {[%clk 0:02:11.5]} 12... cxd4 {[%clk
0:02:35.5]} 13. Nxd4 {[%clk 0:02:12.4]} 13... Rb8 {[%clk 0:02:31.5]} 14. Rad1
{[%clk 0:02:09.6]} 14... Na5 {[%clk 0:02:13.4]} 15. Nb5 {[%clk 0:01:55.2]} 15...
Bxg2 {[%clk 0:02:07.7]} 16. Kxg2 {[%clk 0:01:55.1]} 16... a6 {[%clk 0:02:00.8]}
17. Nd6 {[%clk 0:01:32.3]} 17... Nb7 {[%clk 0:01:55.6]} 18. Bxf6 {[%clk
0:01:25.8]} 18... Qxf6 {[%clk 0:01:55.1]} 19. Ne4 {[%clk 0:01:26]} 19... Qe5
{[%clk 0:01:53.9]} 20. Qf4 {[%clk 0:01:12.6]} 20... Qxf4 {[%clk 0:01:47.3]} 21.
gxf4 {[%clk 0:01:13.7]} 21... Rfd8 {[%clk 0:01:46.1]} 22. Nd6 {[%clk 0:01:00.2]}
22... Kf8 {[%clk 0:01:42.4]} 23. Nxb7 {[%clk 0:00:58]} 23... Rxb7 {[%clk
0:01:42.6]} 24. Rd6 {[%clk 0:00:58.8]} 24... Ke7 {[%clk 0:01:43.5]} 25. Rfd1
{[%clk 0:00:59.7]} 25... a5 {[%clk 0:01:40.9]} 26. a4 {[%clk 0:00:55.4]} 26...
Rc8 {[%clk 0:01:40.4]} 27. e4 {[%clk 0:00:53.1]} 27... f6 {[%clk 0:01:41.1]} 28.
Kf3 {[%clk 0:00:42.3]} 28... Rc6 {[%clk 0:01:41.5]} 29. e5 {[%clk 0:00:27.4]}
29... Rc5 {[%clk 0:01:35.7]} 30. Ke4 {[%clk 0:00:24.7]} 30... f5+ {[%clk
0:01:30.9]} 31. Kf3 {[%clk 0:00:21.9]} 31... Rc6 {[%clk 0:01:30.1]} 32. R6d4
{[%clk 0:00:13.5]} 32... Rc5 {[%clk 0:01:28.3]} 33. Rd6 {[%clk 0:00:12.6]} 33...
g5 {[%clk 0:01:25.5]} 34. R1d4 {[%clk 0:00:10.5]} 34... gxf4 {[%clk 0:01:22.4]}
35. Kxf4 {[%clk 0:00:11.5]} 35... Rc8 {[%clk 0:01:19.8]} 36. Ke3 {[%clk
0:00:07.3]} 36... Rg8 {[%clk 0:01:20.1]} 37. Rd2 {[%clk 0:00:05.3]} 37... Rg4
{[%clk 0:01:19.7]} 38. Ke2 {[%clk 0:00:04.8]} 38... Re4+ {[%clk 0:01:19]} 39.
Kf3 {[%clk 0:00:05.3]} 39... Rxe5 {[%clk 0:01:20]} 40. Kf4 {[%clk 0:00:05.7]}
40... Re4+ {[%clk 0:01:20.7]} 41. Kf3 {[%clk 0:00:06.9]} 41... Rg4 {[%clk
0:01:20.5]} 42. h3 {[%clk 0:00:07.4]} 42... Rg8 {[%clk 0:01:20.9]} 43. R6d4
{[%clk 0:00:07.4]} 43... Rc7 {[%clk 0:01:19.7]} 44. Re2 {[%clk 0:00:07.9]} 44...
d6 {[%clk 0:01:15.3]} 45. Red2 {[%clk 0:00:08.7]} 45... Rd7 {[%clk 0:01:15.4]}
46. Re2 {[%clk 0:00:09.2]} 46... e5 {[%clk 0:01:15.4]} 47. Rd5 {[%clk
0:00:10.1]} 47... Ke6 {[%clk 0:01:13.4]} 48. Red2 {[%clk 0:00:10.2]} 48... f4
{[%clk 0:01:07.8]} 49. Rb5 {[%clk 0:00:09.9]} 49... Rb8 {[%clk 0:01:04.7]} 50.
Rbd5 {[%clk 0:00:10.9]} 50... Rc8 {[%clk 0:01:03.8]} 51. Ke4 {[%clk 0:00:11.7]}
51... Rc5 {[%clk 0:01:03.8]} 52. R5d3 {[%clk 0:00:11.7]} 52... Rc6 {[%clk
0:01:03.3]} 53. Rd5 {[%clk 0:00:12]} 53... Rg7 {[%clk 0:01:02.5]} 54. Kf3 {[%clk
0:00:12.6]} 54... Rg6 {[%clk 0:01:01.7]} 55. R5d3 {[%clk 0:00:13.4]} 55... Kf5
{[%clk 0:01:01.6]} 56. Rd5 {[%clk 0:00:13.6]} 56... Rh6 {[%clk 0:00:56.4]} 57.
h4 {[%clk 0:00:13.3]} 57... Rxh4 {[%clk 0:00:54.1]} 58. Rxd6 {[%clk 0:00:14.6]}
58... Rxd6 {[%clk 0:00:53.9]} 59. Rxd6 {[%clk 0:00:15]} 59... Rh3+ {[%clk
0:00:54.8]} 60. Ke2 {[%clk 0:00:15.9]} 60... Rxb3 {[%clk 0:00:55]} 61. Rh6
{[%clk 0:00:16.8]} 61... Rb4 {[%clk 0:00:55.5]} 62. Rxh7 {[%clk 0:00:17.4]}
62... Rxa4 {[%clk 0:00:54.5]} 63. Rb7 {[%clk 0:00:18.3]} 63... Rxc4 {[%clk
0:00:55]} 64. Rxb6 {[%clk 0:00:19.3]} 64... Rc5 {[%clk 0:00:51]} 65. Ra6 {[%clk
0:00:20]} 65... e4 {[%clk 0:00:50.5]} 66. Kd2 {[%clk 0:00:20.7]} 66... Kg4
{[%clk 0:00:50.6]} 67. Rg6+ {[%clk 0:00:20.3]} 67... Kf3 {[%clk 0:00:51.3]} 68.
Rf6 {[%clk 0:00:19.7]} 68... Rb5 {[%clk 0:00:46.3]} 69. Rf8 {[%clk 0:00:19.6]}
69... Rb2+ {[%clk 0:00:46.8]} 70. Kc3 {[%clk 0:00:20.4]} 70... Rxf2 {[%clk
0:00:47.4]} 71. Ra8 {[%clk 0:00:21.2]} 71... Ra2 {[%clk 0:00:47.5]} 72. Rh8
{[%clk 0:00:21.7]} 72... e3 {[%clk 0:00:48]} 0-1

[Event "*** Titled Tuesday Blitz"]
[Site "Chess.com"]
[Date "2019.02.05"]
[Round "6"]
[White "vugarrasulov"]
[Black "HomayoonTofighi"]
[Result "0-1"]
[WhiteElo "2852"]
[BlackElo "2754"]
[TimeControl "180+2"]
[EndTime "14:26:47 PST"]
[Termination "HomayoonTofighi won by resignation"]

1. e4 {[%clk 0:03:01.9]} 1... e6 {[%clk 0:03:00.6]} 2. d4 {[%clk 0:03:03.1]}
2... d5 {[%clk 0:03:01.9]} 3. Nd2 {[%clk 0:03:04.7]} 3... Nf6 {[%clk 0:03:02.4]}
4. e5 {[%clk 0:03:06]} 4... Nfd7 {[%clk 0:03:03.8]} 5. Bd3 {[%clk 0:03:07]} 5...
c5 {[%clk 0:03:05.3]} 6. c3 {[%clk 0:03:08.4]} 6... Nc6 {[%clk 0:03:06.1]} 7.
Ne2 {[%clk 0:03:09.4]} 7... Qb6 {[%clk 0:03:07.1]} 8. Nf3 {[%clk 0:03:09.3]}
8... cxd4 {[%clk 0:03:09]} 9. cxd4 {[%clk 0:03:11.2]} 9... Bb4+ {[%clk 0:03:07]}
10. Bd2 {[%clk 0:03:12.4]} 10... Bxd2+ {[%clk 0:03:04.7]} 11. Qxd2 {[%clk
0:03:14.3]} 11... f6 {[%clk 0:03:05.3]} 12. exf6 {[%clk 0:03:13.6]} 12... Nxf6
{[%clk 0:03:07.2]} 13. O-O {[%clk 0:03:13.7]} 13... O-O {[%clk 0:03:07.9]} 14.
Ng3 {[%clk 0:02:48.2]} 14... Bd7 {[%clk 0:03:08.5]} 15. a3 {[%clk 0:02:46.8]}
15... Rae8 {[%clk 0:03:03.3]} 16. b4 {[%clk 0:02:47.8]} 16... a6 {[%clk
0:02:40.4]} 17. Rae1 {[%clk 0:02:47]} 17... Ng4 {[%clk 0:02:30.1]} 18. Qg5
{[%clk 0:02:42.2]} 18... Nf6 {[%clk 0:02:27.8]} 19. Qh4 {[%clk 0:02:41.4]} 19...
h6 {[%clk 0:02:23.2]} 20. Re2 {[%clk 0:02:32.5]} 20... Nd8 {[%clk 0:02:08.4]}
21. Ne5 {[%clk 0:02:28.3]} 21... Bb5 {[%clk 0:02:07]} 22. Bxb5 {[%clk
0:02:28.1]} 22... Qxb5 {[%clk 0:02:06.4]} 23. Rfe1 {[%clk 0:02:26.6]} 23... Nc6
{[%clk 0:02:01]} 24. h3 {[%clk 0:02:05]} 24... Qb6 {[%clk 0:01:46.8]} 25. Nxc6
{[%clk 0:02:02.2]} 25... Qxc6 {[%clk 0:01:48.7]} 26. Nh5 {[%clk 0:01:58.1]}
26... Nxh5 {[%clk 0:01:43.9]} 27. Qxh5 {[%clk 0:02:00]} 27... Qc3 {[%clk
0:01:41.9]} 28. Qg4 {[%clk 0:01:59.1]} 28... Qxa3 {[%clk 0:01:39.3]} 29. Rxe6
{[%clk 0:01:59.9]} 29... Rxe6 {[%clk 0:01:37.3]} 30. Qxe6+ {[%clk 0:01:59.9]}
30... Kh7 {[%clk 0:01:31.5]} 31. Qe7 {[%clk 0:01:51.2]} 31... Rf6 {[%clk
0:01:25]} 32. Qxb7 {[%clk 0:01:39.6]} 32... Qb2 {[%clk 0:01:24.9]} 33. Rf1
{[%clk 0:01:32.1]} 33... Qxd4 {[%clk 0:01:24.7]} 34. Qe7 {[%clk 0:01:31.8]}
34... Qf4 {[%clk 0:01:18.3]} 35. g3 {[%clk 0:01:23.8]} 35... Qf5 {[%clk
0:01:19.1]} 36. h4 {[%clk 0:01:21.1]} 36... d4 {[%clk 0:01:16.8]} 37. Qc5 {[%clk
0:01:14.6]} 37... Qd7 {[%clk 0:01:07]} 38. Rd1 {[%clk 0:01:12.2]} 38... d3
{[%clk 0:01:06.8]} 39. Qe3 {[%clk 0:01:11.5]} 39... Rd6 {[%clk 0:01:07.8]} 40.
Qe4+ {[%clk 0:01:12.7]} 40... Kg8 {[%clk 0:01:03.4]} 41. Rd2 {[%clk 0:01:13]}
41... Rd4 {[%clk 0:01:04.1]} 42. Qa8+ {[%clk 0:01:08.5]} 42... Kh7 {[%clk
0:01:05]} 43. Qxa6 {[%clk 0:01:07.6]} 43... Qe7 {[%clk 0:01:00.3]} 44. Rxd3
{[%clk 0:00:51.7]} 44... Qe2 {[%clk 0:00:52.3]} 45. Ra3 {[%clk 0:00:38.9]} 45...
Rd1+ {[%clk 0:00:49.5]} 46. Kg2 {[%clk 0:00:40.2]} 46... Qe4+ {[%clk 0:00:46.6]}
47. Rf3 {[%clk 0:00:41]} 47... Qe1 {[%clk 0:00:39.9]} 48. g4 {[%clk 0:00:20.8]}
48... Qg1+ {[%clk 0:00:31.9]} 49. Kh3 {[%clk 0:00:21.9]} 49... Qh1+ {[%clk
0:00:30]} 50. Kg3 {[%clk 0:00:23.3]} 50... Rg1+ {[%clk 0:00:31]} 51. Kf4 {[%clk
0:00:24]} 51... Qh2+ {[%clk 0:00:25.4]} 52. Kf5 {[%clk 0:00:22.9]} 52... Re1
{[%clk 0:00:20.6]} 53. Rf4 {[%clk 0:00:15.5]} 53... Qxh4 {[%clk 0:00:17.4]} 54.
Qg6+ {[%clk 0:00:15.3]} 54... Kg8 {[%clk 0:00:17.3]} 55. Re4 {[%clk 0:00:10.9]}
55... Qxf2+ {[%clk 0:00:18]} 56. Ke5 {[%clk 0:00:12.3]} 56... Qg3+ {[%clk
0:00:14.9]} 57. Ke6 {[%clk 0:00:11.7]} 57... Qb3+ {[%clk 0:00:13]} 58. Kd6
{[%clk 0:00:09.3]} 58... Qd3+ {[%clk 0:00:12.7]} 59. Ke5 {[%clk 0:00:10.7]}
59... Qc3+ {[%clk 0:00:09.7]} 60. Kd5 {[%clk 0:00:05.5]} 60... Qd3+ {[%clk
0:00:10.3]} 61. Ke5 {[%clk 0:00:06.6]} 61... Qc3+ {[%clk 0:00:08.3]} 62. Kd6
{[%clk 0:00:06.4]} 62... Rd1+ {[%clk 0:00:09.6]} 63. Ke7 {[%clk 0:00:07.5]}
63... Qc7+ {[%clk 0:00:10.3]} 64. Ke6 {[%clk 0:00:07.4]} 64... Rd6+ {[%clk
0:00:10.8]} 65. Kf5 {[%clk 0:00:08.2]} 65... Rxg6 {[%clk 0:00:12.4]} 66. Kxg6
{[%clk 0:00:07.5]} 66... Qc6+ {[%clk 0:00:12.8]} 67. Kf5 {[%clk 0:00:08.5]}
67... Qd5+ {[%clk 0:00:14.2]} 68. Kf4 {[%clk 0:00:09.8]} 68... g5+ {[%clk
0:00:15.2]} 69. Ke3 {[%clk 0:00:11.1]} 69... Qb3+ {[%clk 0:00:16.9]} 70. Kd2
{[%clk 0:00:11.9]} 70... Kf7 {[%clk 0:00:16.9]} 71. Rd4 {[%clk 0:00:13.5]} 71...
Ke6 {[%clk 0:00:17.8]} 72. Rd3 {[%clk 0:00:13.5]} 0-1

[Event "*** Titled Tuesday Blitz"]
[Site "Chess.com"]
[Date "2019.02.05"]
[Round "6"]
[White "matiss90"]
[Black "SuperCheese"]
[Result "0-1"]
[WhiteElo "2467"]
[BlackElo "2582"]
[TimeControl "180+2"]
[EndTime "14:27:01 PST"]
[Termination "SuperCheese won by checkmate"]

1. e4 {[%clk 0:03:01.9]} 1... e5 {[%clk 0:03:01.2]} 2. Nf3 {[%clk 0:03:02.6]}
2... Nc6 {[%clk 0:03:02.8]} 3. Bb5 {[%clk 0:03:03.4]} 3... a6 {[%clk 0:03:03.3]}
4. Ba4 {[%clk 0:03:04.3]} 4... Nf6 {[%clk 0:03:04.9]} 5. d3 {[%clk 0:03:05.2]}
5... b5 {[%clk 0:03:04.4]} 6. Bb3 {[%clk 0:03:06]} 6... Be7 {[%clk 0:03:05.6]}
7. O-O {[%clk 0:03:04.7]} 7... d6 {[%clk 0:03:06.5]} 8. c3 {[%clk 0:03:04.1]}
8... O-O {[%clk 0:03:07.7]} 9. Re1 {[%clk 0:03:05.2]} 9... h6 {[%clk 0:03:02.7]}
10. Nbd2 {[%clk 0:03:05.7]} 10... Bb7 {[%clk 0:03:02.7]} 11. Nf1 {[%clk
0:03:05.7]} 11... Re8 {[%clk 0:03:04.1]} 12. Ne3 {[%clk 0:03:05.6]} 12... Bf8
{[%clk 0:03:05.1]} 13. Nf5 {[%clk 0:03:06.4]} 13... d5 {[%clk 0:02:45.1]} 14.
Qe2 {[%clk 0:02:52.6]} 14... Na5 {[%clk 0:02:30.7]} 15. Bc2 {[%clk 0:02:52.9]}
15... dxe4 {[%clk 0:02:22.7]} 16. dxe4 {[%clk 0:02:54.8]} 16... Nc4 {[%clk
0:02:23.7]} 17. N3h4 {[%clk 0:02:47]} 17... Nd6 {[%clk 0:02:20.6]} 18. Nxd6
{[%clk 0:02:41.4]} 18... Qxd6 {[%clk 0:02:17.8]} 19. Nf5 {[%clk 0:02:42.2]}
19... Qe6 {[%clk 0:02:09.2]} 20. Qf3 {[%clk 0:02:29.1]} 20... c5 {[%clk
0:02:05.4]} 21. g4 {[%clk 0:02:07.4]} 21... g6 {[%clk 0:01:50.1]} 22. Qg3 {[%clk
0:01:46.9]} 22... Kh7 {[%clk 0:01:35.5]} 23. Bxh6 {[%clk 0:00:59.3]} 23... Bxh6
{[%clk 0:01:25.2]} 24. Nxh6 {[%clk 0:00:59.8]} 24... Kxh6 {[%clk 0:01:24.1]} 25.
g5+ {[%clk 0:01:00.7]} 25... Kg7 {[%clk 0:01:25]} 26. gxf6+ {[%clk 0:01:01.8]}
26... Qxf6 {[%clk 0:01:26.9]} 27. Re3 {[%clk 0:01:02.8]} 27... Qf4 {[%clk
0:01:12.6]} 28. Rd1 {[%clk 0:00:57.2]} 28... Rad8 {[%clk 0:00:57.2]} 29. Ree1
{[%clk 0:00:50.1]} 29... a5 {[%clk 0:00:42]} 30. a4 {[%clk 0:00:49]} 30... b4
{[%clk 0:00:42.1]} 31. Qxf4 {[%clk 0:00:43.6]} 31... exf4 {[%clk 0:00:42.7]} 32.
f3 {[%clk 0:00:42.5]} 32... Kf6 {[%clk 0:00:35]} 33. cxb4 {[%clk 0:00:41]} 33...
cxb4 {[%clk 0:00:34.6]} 34. Bb3 {[%clk 0:00:41.8]} 34... Ke7 {[%clk 0:00:23.9]}
35. Bc4 {[%clk 0:00:27.6]} 35... Bc6 {[%clk 0:00:20.1]} 36. b3 {[%clk
0:00:28.2]} 36... f6 {[%clk 0:00:20]} 37. Kg2 {[%clk 0:00:23.6]} 37... Rxd1
{[%clk 0:00:20.7]} 38. Rxd1 {[%clk 0:00:24.4]} 38... Rd8 {[%clk 0:00:22.3]} 39.
Rxd8 {[%clk 0:00:24.3]} 39... Kxd8 {[%clk 0:00:24.2]} 40. Kf2 {[%clk 0:00:24.3]}
40... Kc7 {[%clk 0:00:22.8]} 41. h4 {[%clk 0:00:24]} 41... Be8 {[%clk
0:00:22.4]} 42. Ke2 {[%clk 0:00:23.1]} 42... Kd6 {[%clk 0:00:23.3]} 43. Kd3
{[%clk 0:00:23.1]} 43... Ke5 {[%clk 0:00:24.3]} 44. Bb5 {[%clk 0:00:23.8]} 44...
Bf7 {[%clk 0:00:25.4]} 45. Bc4 {[%clk 0:00:23.9]} 45... Be8 {[%clk 0:00:26.7]}
46. Bd5 {[%clk 0:00:24.9]} 46... g5 {[%clk 0:00:25.5]} 47. hxg5 {[%clk
0:00:25.4]} 47... fxg5 {[%clk 0:00:27.4]} 48. Bc4 {[%clk 0:00:20]} 48... Bc6
{[%clk 0:00:26]} 49. Ke2 {[%clk 0:00:19.9]} 49... Bd7 {[%clk 0:00:24.7]} 50. Bd3
{[%clk 0:00:20.5]} 50... Be6 {[%clk 0:00:25.1]} 51. Bc2 {[%clk 0:00:18.5]} 51...
Kd4 {[%clk 0:00:26.4]} 52. Kd2 {[%clk 0:00:19.4]} 52... Bd7 {[%clk 0:00:25.3]}
53. Bd1 {[%clk 0:00:20.2]} 53... Be6 {[%clk 0:00:26.2]} 54. Bc2 {[%clk 0:00:21]}
54... Bf7 {[%clk 0:00:26.8]} 55. Bd1 {[%clk 0:00:21.5]} 55... Bh5 {[%clk
0:00:27.9]} 56. Be2 {[%clk 0:00:19.3]} 56... Bf7 {[%clk 0:00:29.4]} 57. Bd1
{[%clk 0:00:20.2]} 57... Be6 {[%clk 0:00:30.8]} 58. Bc2 {[%clk 0:00:18.1]} 58...
Bc8 {[%clk 0:00:25.4]} 59. Bd1 {[%clk 0:00:18.6]} 59... Bd7 {[%clk 0:00:26.7]}
60. Bc2 {[%clk 0:00:19.6]} 60... Be6 {[%clk 0:00:27.9]} 61. Bd1 {[%clk
0:00:20.5]} 61... Bc8 {[%clk 0:00:28.8]} 62. Be2 {[%clk 0:00:21.5]} 62... Be6
{[%clk 0:00:29.5]} 63. Bd1 {[%clk 0:00:22.6]} 63... Bd7 {[%clk 0:00:28.3]} 64.
Be2 {[%clk 0:00:23.6]} 64... Be8 {[%clk 0:00:29.6]} 65. Bd1 {[%clk 0:00:24.7]}
65... Bf7 {[%clk 0:00:31.1]} 66. Bc2 {[%clk 0:00:25.9]} 66... Be6 {[%clk
0:00:32.2]} 67. Bd1 {[%clk 0:00:26.9]} 67... Bc8 {[%clk 0:00:33.6]} 68. Be2
{[%clk 0:00:27.8]} 68... Ke5 {[%clk 0:00:30.4]} 69. Bd1 {[%clk 0:00:26.9]} 69...
Be6 {[%clk 0:00:30.8]} 70. Kd3 {[%clk 0:00:27.7]} 70... Bf7 {[%clk 0:00:29.6]}
71. Bc2 {[%clk 0:00:27.7]} 71... Bg8 {[%clk 0:00:29.4]} 72. Bd1 {[%clk
0:00:28.4]} 72... Be6 {[%clk 0:00:30.9]} 73. Bc2 {[%clk 0:00:27.8]} 73... g4
{[%clk 0:00:32.2]} 74. fxg4 {[%clk 0:00:28.8]} 74... Bxg4 {[%clk 0:00:34.1]} 75.
Kc4 {[%clk 0:00:29.9]} 75... Be2+ {[%clk 0:00:26.9]} 76. Kc5 {[%clk 0:00:12.4]}
76... f3 {[%clk 0:00:20.3]} 77. Kb6 {[%clk 0:00:13.3]} 77... f2 {[%clk
0:00:21.4]} 78. Kxa5 {[%clk 0:00:14.5]} 78... f1=Q {[%clk 0:00:22.5]} 79. Kxb4
{[%clk 0:00:15.5]} 79... Qe1+ {[%clk 0:00:23.8]} 80. Ka3 {[%clk 0:00:12.8]}
80... Qc3 {[%clk 0:00:24.5]} 81. Bb1 {[%clk 0:00:13.5]} 81... Bd1 {[%clk
0:00:25]} 82. Ba2 {[%clk 0:00:14.1]} 82... Kd4 {[%clk 0:00:24.5]} 83. e5 {[%clk
0:00:14.3]} 83... Kc5 {[%clk 0:00:22.9]} 84. e6 {[%clk 0:00:14.6]} 84... Qc1#
{[%clk 0:00:23.9]} 0-1

[Event "*** Titled Tuesday Blitz"]
[Site "Chess.com"]
[Date "2019.02.05"]
[Round "6"]
[White "Sosat98"]
[Black "Konavets"]
[Result "1-0"]
[WhiteElo "2611"]
[BlackElo "2812"]
[TimeControl "180+2"]
[EndTime "14:27:47 PST"]
[Termination "Sosat98 won by resignation"]

1. e4 {[%clk 0:03:01.9]} 1... d6 {[%clk 0:02:59.9]} 2. d4 {[%clk 0:03:02.1]}
2... Nf6 {[%clk 0:03:00.5]} 3. Nc3 {[%clk 0:03:03.6]} 3... Nc6 {[%clk
0:03:02.2]} 4. Nf3 {[%clk 0:03:04.3]} 4... g6 {[%clk 0:03:03.7]} 5. Be2 {[%clk
0:03:05.4]} 5... Bg7 {[%clk 0:03:04.9]} 6. O-O {[%clk 0:03:06.8]} 6... O-O
{[%clk 0:03:06.6]} 7. Be3 {[%clk 0:03:07]} 7... Ng4 {[%clk 0:03:06.8]} 8. Bg5
{[%clk 0:03:07.1]} 8... h6 {[%clk 0:03:08.2]} 9. Bh4 {[%clk 0:03:08.4]} 9... g5
{[%clk 0:03:09.7]} 10. Bg3 {[%clk 0:03:09.6]} 10... Nf6 {[%clk 0:03:11.6]} 11.
d5 {[%clk 0:03:08.2]} 11... Nb8 {[%clk 0:03:12.8]} 12. Nd4 {[%clk 0:03:08.9]}
12... c5 {[%clk 0:03:12.6]} 13. dxc6 {[%clk 0:03:02.1]} 13... Nxc6 {[%clk
0:03:11.3]} 14. Nxc6 {[%clk 0:03:03.6]} 14... bxc6 {[%clk 0:03:13.2]} 15. e5
{[%clk 0:03:04.9]} 15... dxe5 {[%clk 0:03:09.7]} 16. Bxe5 {[%clk 0:03:02.7]}
16... Bf5 {[%clk 0:03:10.7]} 17. Qxd8 {[%clk 0:02:55.4]} 17... Rfxd8 {[%clk
0:03:12.6]} 18. Bf3 {[%clk 0:02:54.4]} 18... Rac8 {[%clk 0:03:04.4]} 19. Rad1
{[%clk 0:02:45]} 19... Bxc2 {[%clk 0:03:04.1]} 20. Rxd8+ {[%clk 0:02:43.8]}
20... Rxd8 {[%clk 0:03:06]} 21. Bxc6 {[%clk 0:02:43.3]} 21... Ng4 {[%clk
0:03:01.2]} 22. Bg3 {[%clk 0:02:29.6]} 22... Ne5 {[%clk 0:02:57.6]} 23. Bd5
{[%clk 0:02:22.3]} 23... Nd3 {[%clk 0:02:44.6]} 24. Be4 {[%clk 0:02:08.9]} 24...
e6 {[%clk 0:02:45.2]} 25. Bc7 {[%clk 0:01:28.4]} 25... Rc8 {[%clk 0:02:42.4]}
26. Ba5 {[%clk 0:01:29.2]} 26... Nxb2 {[%clk 0:02:43]} 27. Bxc2 {[%clk
0:01:28.2]} 27... Bxc3 {[%clk 0:02:44.5]} 28. Rb1 {[%clk 0:01:14.9]} 28... Nc4
{[%clk 0:02:35.7]} 29. Bxc3 {[%clk 0:01:15.7]} 29... Na3 {[%clk 0:02:37]} 30.
Rc1 {[%clk 0:01:16.8]} 30... Nxc2 {[%clk 0:02:03.4]} 31. Rxc2 {[%clk 0:01:17.1]}
31... Kh7 {[%clk 0:02:05.3]} 32. f3 {[%clk 0:01:18.1]} 32... Kg6 {[%clk
0:02:06.9]} 33. Kf2 {[%clk 0:01:19.7]} 33... e5 {[%clk 0:02:07.7]} 34. Ke3
{[%clk 0:01:19.3]} 34... f6 {[%clk 0:02:09.2]} 35. Kd3 {[%clk 0:01:20.8]} 35...
h5 {[%clk 0:02:09.3]} 36. Rb2 {[%clk 0:01:21.2]} 36... h4 {[%clk 0:02:09.8]} 37.
Rb7 {[%clk 0:01:22.2]} 37... Rd8+ {[%clk 0:02:11.3]} 38. Ke3 {[%clk 0:01:20.7]}
38... Rc8 {[%clk 0:02:12.1]} 39. Bd2 {[%clk 0:01:15.4]} 39... a6 {[%clk
0:02:12.1]} 40. Ra7 {[%clk 0:01:16.2]} 40... Rc6 {[%clk 0:02:12.7]} 41. a4
{[%clk 0:01:17.7]} 41... Kf5 {[%clk 0:02:12.3]} 42. a5 {[%clk 0:01:17.6]} 42...
g4 {[%clk 0:02:12.8]} 43. fxg4+ {[%clk 0:01:15.8]} 43... Kxg4 {[%clk 0:02:14.7]}
44. Ke4 {[%clk 0:01:16.7]} 44... Rc4+ {[%clk 0:02:15.3]} 45. Kd3 {[%clk
0:01:13.7]} 45... Rd4+ {[%clk 0:02:16.5]} 46. Ke3 {[%clk 0:01:14.4]} 46... Rd6
{[%clk 0:02:17.4]} 47. h3+ {[%clk 0:01:12.3]} 47... Kg3 {[%clk 0:02:18.3]} 48.
Rg7+ {[%clk 0:01:13.3]} 48... Kh2 {[%clk 0:02:19.8]} 49. Be1 {[%clk 0:01:14.5]}
49... Rd4 {[%clk 0:02:19.2]} 50. Rg6 {[%clk 0:01:13]} 50... f5 {[%clk
0:02:19.8]} 51. Rg5 {[%clk 0:01:08.9]} 51... Re4+ {[%clk 0:02:20.2]} 52. Kf2
{[%clk 0:01:07.5]} 52... f4 {[%clk 0:02:17.8]} 53. Bc3 {[%clk 0:01:04.9]} 53...
f3 {[%clk 0:02:04.9]} 54. gxf3 {[%clk 0:00:56.4]} 54... Rf4 {[%clk 0:02:05.9]}
55. Bxe5 {[%clk 0:00:53]} 55... Kxh3 {[%clk 0:02:07.1]} 56. Rh5 {[%clk
0:00:30.5]} 56... Rxf3+ {[%clk 0:02:04.1]} 57. Ke2 {[%clk 0:00:23.6]} 57... Ra3
{[%clk 0:02:04]} 58. Bf6 {[%clk 0:00:24.7]} 58... Kg3 {[%clk 0:01:54.7]} 59.
Bxh4+ {[%clk 0:00:19.2]} 59... Kg4 {[%clk 0:01:55.2]} 60. Rh6 {[%clk 0:00:19.7]}
60... Rxa5 {[%clk 0:01:03.8]} 61. Be1 {[%clk 0:00:19.8]} 61... Ra2+ {[%clk
0:01:04.6]} 62. Bd2 {[%clk 0:00:20.9]} 62... Kf5 {[%clk 0:01:05.8]} 63. Kd3
{[%clk 0:00:21.9]} 63... Ke5 {[%clk 0:01:06.9]} 64. Bc3+ {[%clk 0:00:23.2]}
64... Kd5 {[%clk 0:01:07.9]} 65. Rh5+ {[%clk 0:00:24.3]} 65... Kc6 {[%clk
0:01:09.3]} 66. Kc4 {[%clk 0:00:25.9]} 66... Ra4+ {[%clk 0:01:10.6]} 67. Kb3
{[%clk 0:00:20]} 67... Rg4 {[%clk 0:01:11.1]} 68. Bb4 {[%clk 0:00:21.2]} 68...
Rg1 {[%clk 0:01:08.7]} 69. Rh6+ {[%clk 0:00:21.5]} 69... Kb5 {[%clk 0:01:09.7]}
70. Rh5+ {[%clk 0:00:23.2]} 70... Kc6 {[%clk 0:01:11.1]} 71. Ka4 {[%clk
0:00:24.1]} 71... Ra1+ {[%clk 0:01:11.5]} 72. Ba3 {[%clk 0:00:25.2]} 72... Rb1
{[%clk 0:01:12.2]} 73. Rh6+ {[%clk 0:00:26.5]} 73... Kb7 {[%clk 0:01:12.9]} 74.
Bc5 {[%clk 0:00:27.1]} 74... Ra1+ {[%clk 0:01:13.6]} 75. Kb4 {[%clk 0:00:27.7]}
75... Rb1+ {[%clk 0:01:14.1]} 76. Kc4 {[%clk 0:00:29]} 76... Rc1+ {[%clk
0:01:12.6]} 77. Kd5 {[%clk 0:00:29.9]} 77... Rd1+ {[%clk 0:01:09.8]} 78. Bd4
{[%clk 0:00:30.9]} 78... Rc1 {[%clk 0:00:50.3]} 79. Rb6+ {[%clk 0:00:30]} 79...
Kc8 {[%clk 0:00:51.6]} 80. Be5 {[%clk 0:00:26.8]} 80... a5 {[%clk 0:00:46.7]}
81. Ke6 {[%clk 0:00:21.5]} 81... Kd8 {[%clk 0:00:44.7]} 82. Ra6 {[%clk
0:00:22.7]} 82... Kc8 {[%clk 0:00:43.1]} 83. Rb6 {[%clk 0:00:22.2]} 83... Kd8
{[%clk 0:00:44.3]} 84. Rb8+ {[%clk 0:00:20]} 84... Rc8 {[%clk 0:00:44.4]} 85.
Rb5 {[%clk 0:00:21.1]} 85... Ra8 {[%clk 0:00:41.2]} 86. Bd6 {[%clk 0:00:21.6]}
86... a4 {[%clk 0:00:35.7]} 87. Rh5 {[%clk 0:00:21.3]} 87... Kc8 {[%clk
0:00:36.9]} 88. Ba3 {[%clk 0:00:16.2]} 88... Ra6+ {[%clk 0:00:37.1]} 89. Ke7
{[%clk 0:00:13.8]} 89... Ra7+ {[%clk 0:00:38.4]} 90. Kd6 {[%clk 0:00:14.2]}
90... Ra6+ {[%clk 0:00:39.5]} 91. Kd5 {[%clk 0:00:14.3]} 91... Ra5+ {[%clk
0:00:40.8]} 92. Bc5 {[%clk 0:00:15.8]} 92... a3 {[%clk 0:00:42.2]} 93. Kc6
{[%clk 0:00:15.7]} 93... Ra6+ {[%clk 0:00:13.7]} 94. Bb6 {[%clk 0:00:15.9]} 1-0